bitfinex/quotes_BTCUSD_20250601
["timestamp","ask_amount","ask_price","bid_price","bid_amount"]
[1748760728511,1.17029708,104360.0,104350.0,0.85744292]
[1748760728681,1.17029708,104360.0,104350.0,0.86642421]
[1748760729084,1.17029708,104360.0,104350.0,0.88438679]
[1748760729285,1.2628083,104360.0,104350.0,0.88438679]
[1748760729681,1.2628083,104360.0,104350.0,0.85744292]
[1748760729896,1.2628083,104360.0,104350.0,0.88438671]
[1748760730335,1.2628083,104360.0,104350.0,0.85744292]
[1748760730506,1.2628083,104360.0,104350.0,0.87540544]
[1748760730704,1.2628083,104360.0,104350.0,0.86642417]
[1748760730912,1.2628083,104360.0,104350.0,0.85744292]
[1748760731112,1.2628083,104360.0,104350.0,0.8754054]
[1748760731349,1.2628083,104360.0,104350.0,0.88438664]
[1748760732392,1.2628083,104360.0,104350.0,0.85744292]
[1748760732892,1.2628083,104360.0,104350.0,0.87540565]
[1748760733274,1.2628083,104360.0,104350.0,0.88438701]
[1748760733813,0.79069708,104360.0,104350.0,0.88438701]
[1748760733988,1.17025708,104360.0,104350.0,0.85744292]
[1748760734193,1.17025708,104360.0,104350.0,0.88438703]
[1748760734862,1.17025708,104360.0,104350.0,0.88438722]
[1748760735701,1.17025708,104360.0,104350.0,0.88438902]
[1748760735890,1.17025708,104360.0,104350.0,0.85744292]
[1748760736015,1.17025708,104360.0,104350.0,0.88438902]
[1748760736215,1.2627683,104360.0,104350.0,0.88439021]
[1748760737165,1.2627683,104360.0,104350.0,0.86642535]
[1748760737365,1.2627683,104360.0,104350.0,0.88439203]
[1748760737805,1.2627683,104360.0,104350.0,0.86642627]
[1748760738007,1.2627683,104360.0,104350.0,0.88439298]
[1748760738178,1.2627683,104360.0,104350.0,0.86642627]
[1748760738389,1.17025708,104360.0,104350.0,0.84849066]
[1748760738644,1.17025708,104360.0,104350.0,0.8664574]
[1748760739168,1.17025708,104360.0,104350.0,0.86645746]
[1748760740020,1.18625708,104360.0,104350.0,0.8664574]
[1748760740253,1.20185708,104360.0,104350.0,0.86645742]
[1748760740456,1.20185708,104360.0,104350.0,0.86645748]
[1748760741294,1.20185708,104360.0,104350.0,0.86645752]
[1748760741511,1.20185708,104360.0,104350.0,0.86645764]
[1748760741716,1.20185708,104360.0,104350.0,0.83950731]
[1748760741904,1.20185708,104360.0,104350.0,0.86645764]
[1748760742834,1.20185708,104360.0,104350.0,0.84849075]
[1748760743071,1.20185708,104360.0,104350.0,0.86645781]
[1748760743789,1.20185708,104360.0,104350.0,0.83950731]
[1748760744013,1.20185708,104360.0,104350.0,0.86645788]
[1748760744218,1.20185708,104360.0,104350.0,0.83950731]
[1748760744424,1.20185708,104360.0,104350.0,0.86645788]
[1748760744628,1.20185708,104360.0,104350.0,0.8664579]
[1748760745087,1.20185708,104360.0,104350.0,0.86645793]
[1748760745308,1.20185708,104360.0,104350.0,0.87039212]
[1748760745504,1.20185708,104360.0,104350.0,0.87039216]
[1748760745885,1.20185708,104360.0,104350.0,0.87039215]
[1748760746976,1.20185708,104360.0,104350.0,0.85242497]
[1748760747392,1.20185708,104360.0,104350.0,0.86140844]
[1748760747601,1.20185708,104360.0,104350.0,0.86140842]
[1748760747750,1.20185708,104360.0,104350.0,0.85242496]
[1748760747935,1.20185708,104360.0,104350.0,0.8434415]
[1748760748137,1.20185708,104360.0,104350.0,0.85242496]
[1748760748347,1.20185708,104360.0,104350.0,0.8434415]
[1748760749871,1.20185708,104360.0,104350.0,0.85242493]
[1748760750103,1.20185708,104360.0,104350.0,0.87039179]
[1748760750304,1.2943683,104360.0,104350.0,0.86140836]
[1748760750757,1.2943683,104360.0,104350.0,0.8434415]
[1748760751198,1.2943683,104360.0,104350.0,0.87039209]
[1748760751744,1.2943683,104360.0,104350.0,0.87039213]
[1748760751945,1.2943683,104360.0,104350.0,0.86140865]
[1748760752150,1.2943683,104360.0,104350.0,0.8434415]
[1748760752351,1.20185708,104360.0,104350.0,0.8434415]
[1748760754026,1.20185708,104360.0,104350.0,0.85242496]
[1748760754240,1.20185708,104360.0,104350.0,0.86140843]
[1748760754378,1.20185708,104360.0,104350.0,0.86140854]
[1748760754576,1.20185708,104360.0,104350.0,0.85242501]
[1748760754784,1.20185708,104360.0,104350.0,0.8434415]
[1748760755196,1.20185708,104360.0,104350.0,0.87039186]
[1748760755639,1.2943683,104360.0,104350.0,0.87039188]
[1748760755814,1.2943683,104360.0,104350.0,0.87039203]
[1748760756013,1.2943683,104360.0,104350.0,0.87039209]
[1748760756216,1.20185708,104360.0,104350.0,0.85242503]
[1748760756416,1.20185708,104360.0,104350.0,0.87039209]
[1748760756637,1.20185708,104360.0,104350.0,0.87039207]
[1748760756802,1.20185708,104360.0,104350.0,0.87039198]
[1748760757540,1.20185708,104360.0,104350.0,0.87039194]
[1748760757705,1.20185708,104360.0,104350.0,0.87039188]
[1748760757905,1.20185708,104360.0,104350.0,0.85242496]
[1748760758105,1.20185708,104360.0,104350.0,0.87039188]
[1748760758548,1.20185708,104360.0,104350.0,0.87039194]
[1748760758787,1.20185708,104360.0,104350.0,0.87039198]
[1748760759655,1.20185708,104360.0,104350.0,0.87039192]
[1748760760068,1.20185708,104360.0,104350.0,0.87039182]
[1748760760294,1.28428457,104360.0,104350.0,0.85242492]
[1748760760516,1.28428457,104360.0,104350.0,0.87039182]
[1748760760718,1.28428457,104360.0,104350.0,0.87039183]
[1748760760931,1.28428457,104360.0,104350.0,0.87039178]
[1748760761109,1.28428457,104360.0,104350.0,0.87039168]
[1748760761476,1.28428457,104360.0,104350.0,0.87039162]
[1748760761673,1.28428457,104360.0,104350.0,0.85242487]
[1748760761978,1.28428457,104360.0,104350.0,0.87039161]
[1748760762516,1.28428457,104360.0,104350.0,0.8434415]
[1748760763221,1.28428457,104360.0,104350.0,0.85242487]
[1748760763377,1.28428457,104360.0,104350.0,0.87039162]
[1748760763563,1.20185708,104360.0,104350.0,0.87039162]
[1748760764083,1.20185708,104360.0,104350.0,0.87039156]
[1748760764503,1.20185708,104360.0,104350.0,0.86140821]
[1748760764709,1.20185708,104360.0,104350.0,0.87039144]
[1748760764898,1.20185708,104360.0,104350.0,0.87039142]
[1748760765336,0.91093708,104360.0,104350.0,0.87039142]
[1748760765572,1.20181708,104360.0,104350.0,0.87039142]
[1748760765721,1.20181708,104360.0,104350.0,0.87039138]
[1748760765926,1.18621708,104360.0,104350.0,0.87039122]
[1748760766333,1.18621708,104360.0,104350.0,0.85242473]
[1748760766531,1.18621708,104360.0,104350.0,0.8703912]
[1748760766763,1.17021708,104360.0,104350.0,0.87039115]
[1748760767994,1.17021708,104360.0,104350.0,0.87039092]
[1748760768411,1.17021708,104360.0,104350.0,0.86141307]
[1748760768862,1.17021708,104360.0,104350.0,0.86141305]
[1748760769452,1.17021708,104360.0,104350.0,0.86141298]
[1748760770262,1.17021708,104360.0,104350.0,0.83446362]
[1748760770477,1.24695898,104360.0,104350.0,0.86141298]
[1748760770726,1.24695898,104360.0,104350.0,0.86141294]
[1748760771147,1.27573598,104360.0,104350.0,0.86141292]
[1748760771521,1.27573598,104360.0,104350.0,0.84344672]
[1748760771734,1.27573598,104360.0,104350.0,0.86141288]
[1748760772094,1.27573598,104360.0,104350.0,0.85242978]
[1748760772302,1.19899408,104360.0,104350.0,0.86141286]
[1748760772508,1.19899408,104360.0,104350.0,0.86141284]
[1748760772758,1.19899408,104360.0,104350.0,0.86141271]
[1748760773532,1.19899408,104360.0,104350.0,0.85242968]
[1748760773731,1.19899408,104360.0,104350.0,0.86141269]
[1748760773981,1.19899408,104360.0,104350.0,0.83446362]
[1748760774810,1.19899408,104360.0,104350.0,0.85242955]
[1748760774947,1.19899408,104360.0,104350.0,0.83446362]
[1748760775146,1.19899408,104360.0,104350.0,0.85242955]
[1748760775827,1.28920526,104360.0,104350.0,0.85242955]
[1748760776030,1.28920526,104360.0,104350.0,0.87039537]
[1748760776232,1.19899408,104360.0,104350.0,0.85242955]
[1748760776426,1.19899408,104360.0,104350.0,0.8703954]
[1748760776667,1.19899408,104360.0,104350.0,0.87039548]
[1748760777077,1.19899408,104360.0,104350.0,0.85242955]
[1748760777286,1.19899408,104360.0,104350.0,0.87039548]
[1748760777429,1.19899408,104360.0,104350.0,0.85242955]
[1748760777640,1.19899408,104360.0,104350.0,0.86141247]
[1748760777875,1.19899408,104360.0,104350.0,0.85242955]
[1748760778055,1.19899408,104360.0,104350.0,0.86141251]
[1748760778261,1.19899408,104360.0,104350.0,0.87937843]
[1748760779331,1.19899408,104360.0,104350.0,0.85242955]
[1748760779543,1.21529408,104360.0,104350.0,0.87039547]
[1748760779776,1.21529408,104360.0,104350.0,0.87937843]
[1748760779968,1.21529408,104360.0,104350.0,0.87937841]
[1748760780460,1.21529408,104360.0,104350.0,0.86141251]
[1748760780663,1.21529408,104360.0,104350.0,0.8793784]
[1748760781181,1.2788196,104360.0,104350.0,0.85242955]
[1748760781484,1.2788196,104360.0,104350.0,0.87937837]
[1748760781706,1.2625196,104360.0,104350.0,0.87937833]
[1748760782330,1.2625196,104360.0,104350.0,0.86141247]
[1748760782537,1.2625196,104360.0,104350.0,0.87039541]
[1748760782752,1.2625196,104360.0,104350.0,0.87937834]
[1748760782930,1.2625196,104360.0,104350.0,0.87039541]
[1748760783147,1.2625196,104360.0,104350.0,0.87937834]
[1748760784251,1.2625196,104360.0,104350.0,0.87937835]
[1748760785177,1.2625196,104360.0,104350.0,0.87039542]
[1748760785385,1.2625196,104360.0,104350.0,0.86141249]
[1748760785577,1.2625196,104360.0,104350.0,0.85242955]
[1748760786320,1.2625196,104360.0,104350.0,0.87039541]
[1748760786558,1.2625196,104360.0,104350.0,0.85242955]
[1748760786931,1.2625196,104360.0,104350.0,0.87937837]
[1748760787342,1.2625196,104360.0,104350.0,0.87039537]
[1748760787543,1.2625196,104360.0,104350.0,0.85242955]
[1748760787881,1.2624796,104360.0,104350.0,0.85242955]
[1748760788084,1.2624796,104360.0,104350.0,0.86141245]
[1748760788254,1.2624796,104360.0,104350.0,0.85242955]
[1748760788457,1.2624796,104360.0,104350.0,0.86141252]
[1748760788651,1.2624796,104360.0,104350.0,0.85242955]
[1748760788853,1.2624796,104360.0,104350.0,0.8703955]
[1748760789120,1.2624796,104360.0,104350.0,0.85242955]
[1748760789927,1.2624796,104360.0,104350.0,0.87937886]
[1748760790126,1.2624796,104360.0,104350.0,0.87937945]
[1748760790278,1.2624796,104360.0,104350.0,0.86141284]
[1748760790479,1.2624796,104360.0,104350.0,0.85242955]
[1748760790683,1.2624796,104360.0,104350.0,0.87937933]
[1748760790913,1.2624796,104360.0,104350.0,0.87937941]
[1748760791545,1.2624796,104360.0,104350.0,0.87937928]
[1748760791718,1.2624796,104360.0,104350.0,0.8614128]
[1748760791921,1.2624796,104360.0,104350.0,0.85242955]
[1748760792120,1.2624796,104360.0,104350.0,0.87937922]
[1748760792322,1.2624796,104360.0,104350.0,0.86141277]
[1748760792534,1.2624796,104360.0,104350.0,0.87937922]
[1748760792923,1.2624796,104360.0,104350.0,0.87937931]
[1748760793123,1.2624796,104360.0,104350.0,0.87937932]
[1748760793805,1.19895408,104360.0,104350.0,0.86141295]
[1748760794025,1.19895408,104360.0,104350.0,0.87937975]
[1748760794875,1.19895408,104360.0,104350.0,0.87937988]
[1748760795254,1.19895408,104360.0,104350.0,0.87039648]
[1748760795413,1.19895408,104360.0,104350.0,0.87937997]
[1748760795611,1.19895408,104360.0,104350.0,0.86141302]
[1748760795813,1.2914653,104360.0,104350.0,0.87937997]
[1748760796022,1.19895408,104360.0,104350.0,0.87937997]
[1748760796333,1.19895408,104360.0,104350.0,0.85242955]
[1748760796954,1.19895408,104360.0,104350.0,0.8703965]
[1748760797150,1.19895408,104360.0,104350.0,0.85242955]
[1748760797535,1.19895408,104360.0,104350.0,0.87937991]
[1748760797737,1.19895408,104360.0,104350.0,0.861413]
[1748760797942,1.19895408,104360.0,104350.0,0.85242955]
[1748760798161,1.19895408,104360.0,104350.0,0.87937991]
[1748760798371,0.90811408,104360.0,104350.0,0.861413]
[1748760798568,1.19895408,104360.0,104350.0,0.86141296]
[1748760798802,1.19895408,104360.0,104350.0,0.85242955]
[1748760799005,0.81947408,104360.0,104350.0,0.85242955]
[1748760799212,0.24947057,104360.0,104350.0,1.41395039]
[1748760799424,0.47320153,104360.0,104350.0,1.38640121]
[1748760799632,0.67442795,104360.0,104350.0,1.41334687]
[1748760799834,0.67442795,104360.0,104350.0,1.42290477]
[1748760799993,0.48278365,104360.0,104350.0,1.42290478]
[1748760800187,0.67442868,104360.0,104350.0,1.42289239]
[1748760800647,0.67442868,104360.0,104350.0,1.4228915]
[1748760800860,0.6552649,104360.0,104350.0,1.40371315]
[1748760801525,0.6552649,104360.0,104350.0,1.40371306]
[1748760801719,0.6552649,104360.0,104350.0,1.3947414]
[1748760801936,0.6552649,104360.0,104350.0,1.40370287]
[1748760802399,0.6552649,104360.0,104350.0,1.37681845]
[1748760802627,0.6552649,104360.0,104350.0,1.40370101]
[1748760803032,0.6714649,104360.0,104350.0,1.40369929]
[1748760803239,0.6714649,104360.0,104350.0,1.40369585]
[1748760803882,0.6876649,104360.0,104350.0,1.40369416]
[1748760804215,0.6876649,104360.0,104350.0,1.40369077]
[1748760804558,0.67808278,104360.0,104350.0,1.40369075]
[1748760804987,0.67808278,104360.0,104350.0,1.40368859]
[1748760805187,0.67808278,104360.0,104350.0,1.38577516]
[1748760805403,0.67808278,104360.0,104350.0,1.40368859]
[1748760805625,0.67808278,104360.0,104350.0,1.39473191]
[1748760805837,0.67808278,104360.0,104350.0,1.40368739]
[1748760806036,0.67808278,104360.0,104350.0,1.40368744]
[1748760806211,0.67808278,104360.0,104350.0,1.21202486]
[1748760806640,0.67808278,104360.0,104350.0,1.40368753]
[1748760806811,0.67808278,104360.0,104350.0,1.38577463]
[1748760807012,0.67808278,104360.0,104350.0,1.40368684]
[1748760807676,0.67808278,104360.0,104350.0,1.3857745]
[1748760807836,0.67808278,104360.0,104350.0,1.40368642]
[1748760808059,0.66188278,104360.0,104350.0,1.40368642]
[1748760808263,0.65230057,104360.0,104350.0,1.21202375]
[1748760808466,0.65230057,104360.0,104350.0,1.21202376]
[1748760809053,0.66850057,104360.0,104350.0,1.21202376]
[1748760809525,0.66850057,104360.0,104350.0,1.21202373]
[1748760809760,0.66850057,104360.0,104350.0,1.2024406]
[1748760809984,0.66850057,104360.0,104350.0,1.2024414]
[1748760810208,0.37766057,104360.0,104350.0,1.39473094]
[1748760810440,0.66846057,104360.0,104350.0,1.39473094]
[1748760810652,0.66846057,104360.0,104350.0,1.40368718]
[1748760811117,0.66846057,104360.0,104350.0,1.37681845]
[1748760811335,0.66846057,104360.0,104350.0,1.40368715]
[1748760811880,0.66846057,104360.0,104350.0,1.40368757]
[1748760812074,0.66846057,104360.0,104350.0,1.3857751]
[1748760812281,0.66846057,104360.0,104350.0,1.39473176]
[1748760812489,0.66846057,104360.0,104350.0,1.40368841]
[1748760812672,0.66846057,104360.0,104350.0,1.3857751]
[1748760812902,0.66846057,104360.0,104350.0,1.40368939]
[1748760813115,0.66846057,104360.0,104350.0,1.38577543]
[1748760813316,0.66846057,104360.0,104350.0,1.40369045]
[1748760813721,0.37766057,104360.0,104350.0,1.40369045]
[1748760813933,0.20518005,104360.0,104350.0,1.43243847]
[1748760814137,0.69058804,104360.0,104350.0,1.39598407]
[1748760814351,0.67438804,104360.0,104350.0,1.41327318]
[1748760814555,0.66480656,104360.0,104350.0,1.20244452]
[1748760814760,0.66480656,104360.0,104350.0,1.20307027]
[1748760814959,0.66480656,104360.0,104350.0,1.40369192]
[1748760815096,0.65522481,104360.0,104350.0,1.2024462]
[1748760815708,0.65522481,104360.0,104350.0,1.18453048]
[1748760816074,0.65522481,104360.0,104350.0,1.17557274]
[1748760816676,0.65522481,104360.0,104350.0,1.19348829]
[1748760816877,0.65522481,104360.0,104350.0,1.17557274]
[1748760817192,0.65522481,104360.0,104350.0,1.20244606]
[1748760817814,0.65522481,104360.0,104350.0,1.20244614]
[1748760818184,0.65522481,104360.0,104350.0,1.18453054]
[1748760818414,0.65522481,104360.0,104350.0,1.16660144]
[1748760818975,0.65522481,104360.0,104350.0,1.17618457]
[1748760819470,0.65522481,104360.0,104350.0,1.16660144]
[1748760820038,0.65522481,104360.0,104350.0,1.17556022]
[1748760820244,0.65522481,104360.0,104350.0,1.18451901]
[1748760820438,0.65522481,104360.0,104350.0,1.16660144]
[1748760820641,0.65522481,104360.0,104350.0,1.18452196]
[1748760821025,0.65522481,104360.0,104350.0,1.16660144]
[1748760821466,0.65522481,104360.0,104350.0,1.1755617]
[1748760821670,0.65522481,104360.0,104350.0,1.17556357]
[1748760822214,0.65522481,104360.0,104350.0,1.16660144]
[1748760822418,0.65522481,104360.0,104350.0,1.19348784]
[1748760823165,0.65522481,104360.0,104350.0,1.19349348]
[1748760823371,0.65522481,104360.0,104350.0,1.1934963]
[1748760824612,0.65522481,104360.0,104350.0,1.19349735]
[1748760824820,0.65522481,104360.0,104350.0,1.19350132]
[1748760825011,0.65522481,104360.0,104350.0,1.19350926]
[1748760825722,0.65522481,104360.0,104350.0,1.19350967]
[1748760826116,0.65522481,104360.0,104350.0,1.19352529]
[1748760826319,0.65522481,104360.0,104350.0,1.1935331]
[1748760827123,0.65522481,104360.0,104350.0,1.17557854]
[1748760827326,0.65522481,104360.0,104350.0,1.19353275]
[1748760827668,0.65522481,104360.0,104350.0,1.19353262]
[1748760828367,0.65522481,104360.0,104350.0,1.19353214]
[1748760828541,0.64560278,104360.0,104350.0,1.20311527]
[1748760828967,0.64560278,104360.0,104350.0,1.20311516]
[1748760829168,0.64560278,104360.0,104350.0,1.20311494]
[1748760829624,0.64560278,104360.0,104350.0,1.19413815]
[1748760829748,0.64560278,104360.0,104350.0,1.20311494]
[1748760830174,0.64560278,104360.0,104350.0,0.87997168]
[1748760830380,0.64560278,104360.0,104350.0,1.20311487]
[1748760830822,0.64560278,104360.0,104350.0,1.19413815]
[1748760831026,0.64560278,104360.0,104350.0,1.19413802]
[1748760831242,0.64560278,104360.0,104350.0,1.20311474]
[1748760831629,0.64560278,104360.0,104350.0,1.20311469]
[1748760832244,0.64560278,104360.0,104350.0,1.18516124]
[1748760832450,0.64560278,104360.0,104350.0,1.36784724]
[1748760832888,0.64560278,104360.0,104350.0,1.37682391]
[1748760833094,0.64560278,104360.0,104350.0,1.39477725]
[1748760834188,0.64560278,104360.0,104350.0,1.36784724]
[1748760834378,0.64560278,104360.0,104350.0,1.39477723]
[1748760835008,0.66180278,104360.0,104350.0,1.39477729]
[1748760835206,0.67820278,104360.0,104350.0,1.40436033]
[1748760835617,0.67820278,104360.0,104350.0,1.40436037]
[1748760835843,0.67820278,104360.0,104350.0,1.40436056]
[1748760836254,0.67820278,104360.0,104350.0,1.3953838]
[1748760836495,0.67820278,104360.0,104350.0,1.40436056]
[1748760837079,0.67820278,104360.0,104350.0,1.40436071]
[1748760837504,0.67820278,104360.0,104350.0,1.38640719]
[1748760837728,0.67820278,104360.0,104350.0,1.37743028]
[1748760837932,0.67820278,104360.0,104350.0,1.40436138]
[1748760838141,0.67820278,104360.0,104350.0,1.4043615]
[1748760838342,0.67820278,104360.0,104350.0,1.40436156]
[1748760838547,0.67820278,104360.0,104350.0,1.39538447]
[1748760838733,0.67820278,104360.0,104350.0,1.40436156]
[1748760839146,0.67820278,104360.0,104350.0,1.40436236]
[1748760839355,0.67820278,104360.0,104350.0,1.38640764]
[1748760839570,0.67820278,104360.0,104350.0,1.40436236]
[1748760839782,0.38744278,104360.0,104350.0,1.40436236]
[1748760839991,0.67820278,104360.0,104350.0,1.40436347]
[1748760840202,0.64560278,104360.0,104350.0,1.40436347]
[1748760840862,0.64560278,104360.0,104350.0,1.40436402]
[1748760841533,0.64560278,104360.0,104350.0,1.39538572]
[1748760841773,0.64560278,104360.0,104350.0,1.41394661]
[1748760842188,0.64560278,104360.0,104350.0,1.41394885]
[1748760842586,0.35484278,104360.0,104350.0,1.41394885]
[1748760842787,0.65518471,104360.0,104350.0,1.43311446]
[1748760843328,0.65518471,104360.0,104350.0,1.4241383]
[1748760843537,0.65518471,104360.0,104350.0,1.43311798]
[1748760843963,0.65518471,104360.0,104350.0,1.43311799]
[1748760844569,0.65518471,104360.0,104350.0,1.43312014]
[1748760845136,0.65518471,104360.0,104350.0,1.43312072]
[1748760845365,0.65518471,104360.0,104350.0,1.43312065]
[1748760845564,0.16319765,104360.0,104350.0,1.43312005]
[1748760845936,0.47312116,104360.0,104350.0,1.43312005]
[1748760846139,0.47312116,104360.0,104350.0,1.41515683]
[1748760846347,0.47312116,104360.0,104350.0,1.43311483]
[1748760846980,0.49228503,104360.0,104350.0,1.43311483]
[1748760847193,0.67434868,104360.0,104350.0,1.42352998]
[1748760847410,0.38358868,104360.0,104350.0,1.43311256]
[1748760847629,0.67434868,104360.0,104350.0,1.43311256]
[1748760847842,0.67434868,104360.0,104350.0,1.43311249]
[1748760848177,0.67434868,104360.0,104350.0,1.43311201]
[1748760848397,0.67434868,104360.0,104350.0,1.39659233]
[1748760848812,0.67434868,104360.0,104350.0,1.4145484]
[1748760849235,0.66476693,104360.0,104350.0,1.41454776]
[1748760849697,0.6551849,104360.0,104350.0,1.38640472]
[1748760849919,0.6551849,104360.0,104350.0,1.05488844]
[1748760850117,0.6551849,104360.0,104350.0,1.08182226]
[1748760850328,0.6551849,104360.0,104350.0,1.08182241]
[1748760850594,0.6551849,104360.0,104350.0,1.07284442]
[1748760850800,0.6551849,104360.0,104350.0,1.4049656]
[1748760851026,0.6551849,104360.0,104350.0,1.41454818]
[1748760851246,0.6551849,104360.0,104350.0,1.08182241]
[1748760851665,0.6551849,104360.0,104350.0,1.4049656]
[1748760851894,0.6551849,104360.0,104350.0,1.37803163]
[1748760852025,0.6551849,104360.0,104350.0,1.4049656]
[1748760852574,0.46354023,104360.0,104350.0,1.41454818]
[1748760852784,0.65518453,104360.0,104350.0,1.41454818]
[1748760853415,0.65518453,104360.0,104350.0,1.4049656]
[1748760853661,0.65518453,104360.0,104350.0,1.40496566]
[1748760853808,0.65518453,104360.0,104350.0,1.40496576]
[1748760854341,0.65518453,104360.0,104350.0,1.37803163]
[1748760854555,0.65518453,104360.0,104350.0,1.4049659]
[1748760855652,0.65518453,104360.0,104350.0,1.41454857]
[1748760856092,0.65518453,104360.0,104350.0,1.41454863]
[1748760856330,0.65514453,104360.0,104350.0,1.41454863]
[1748760856792,0.65514453,104360.0,104350.0,1.4145488]
[1748760856913,0.65514453,104360.0,104350.0,1.41454903]
[1748760857110,0.65514453,104360.0,104350.0,1.39659254]
[1748760857316,0.65514453,104360.0,104350.0,1.41454903]
[1748760857660,0.65514453,104360.0,104350.0,1.39659254]
[1748760857854,0.65514453,104360.0,104350.0,1.41454903]
[1748760858118,0.65514453,104360.0,104350.0,1.41454913]
[1748760858687,0.65514453,104360.0,104350.0,1.41454926]
[1748760859533,0.65514453,104360.0,104350.0,1.3876143]
[1748760859746,0.65514453,104360.0,104350.0,1.41454939]
[1748760860358,0.65514453,104360.0,104350.0,1.41454952]
[1748760860820,0.65514453,104360.0,104350.0,1.3876143]
[1748760861001,0.65514453,104360.0,104350.0,1.41454984]
[1748760861530,0.65514453,104360.0,104350.0,1.41454991]
[1748760862373,0.65514453,104360.0,104350.0,1.41455014]
[1748760862631,0.65514453,104360.0,104350.0,1.39659291]
[1748760862838,0.65514453,104360.0,104350.0,1.41455014]
[1748760863046,0.65514453,104360.0,104350.0,1.41455032]
[1748760863724,0.65514453,104360.0,104350.0,1.41455042]
[1748760864129,0.36442453,104360.0,104350.0,1.40557165]
[1748760864322,0.36442453,104360.0,104350.0,1.40557184]
[1748760864521,0.36442453,104360.0,104350.0,1.3876143]
[1748760864727,0.36442453,104360.0,104350.0,1.41455061]
[1748760865077,0.36442453,104360.0,104350.0,1.3876143]
[1748760865252,0.36442453,104360.0,104350.0,1.41455074]
[1748760865460,0.36442453,104360.0,104350.0,1.40496807]
[1748760865709,0.36442453,104360.0,104350.0,1.40496839]
[1748760865922,0.36442453,104360.0,104350.0,1.38701055]
[1748760866126,0.36442453,104360.0,104350.0,1.4049684]
[1748760866559,0.35484269,104360.0,104350.0,1.35826199]
[1748760866738,0.35484269,104360.0,104350.0,1.05368088]
[1748760867017,0.35484269,104360.0,104350.0,1.04530577]
[1748760867432,0.35484269,104360.0,104350.0,1.05428475]
[1748760867612,0.35484269,104360.0,104350.0,1.04530577]
[1748760867756,0.35484269,104360.0,104350.0,1.07224272]
[1748760867961,0.35484269,104360.0,104350.0,1.39538591]
[1748760868174,0.35484269,104360.0,104350.0,1.07224295]
[1748760868780,0.35484269,104360.0,104350.0,1.07224323]
[1748760869479,0.35484269,104360.0,104350.0,1.07224343]
[1748760869807,0.35484269,104360.0,104350.0,1.05428499]
[1748760870009,0.35484269,104360.0,104350.0,1.07224378]
[1748760870207,0.35484269,104360.0,104350.0,1.07224379]
[1748760870421,0.35484269,104360.0,104350.0,1.07224389]
[1748760870619,0.35484269,104360.0,104350.0,1.07224407]
[1748760871143,0.35484269,104360.0,104350.0,1.39538736]
[1748760871559,0.35484269,104360.0,104350.0,1.39538739]
[1748760872072,0.35484269,104360.0,104350.0,1.39538748]
[1748760872584,0.35484269,104360.0,104350.0,1.36844906]
[1748760872737,0.35484269,104360.0,104350.0,1.39538748]
[1748760873125,0.35484269,104360.0,104350.0,1.37742853]
[1748760873335,0.35484269,104360.0,104350.0,1.39538767]
[1748760873595,0.35484269,104360.0,104350.0,1.36844906]
[1748760873747,0.35484269,104360.0,104350.0,1.40497062]
[1748760873952,0.35484269,104360.0,104350.0,1.37803191]
[1748760874175,0.35484269,104360.0,104350.0,1.40497071]
[1748760874594,0.35484269,104360.0,104350.0,1.40497075]
[1748760874999,0.35484269,104360.0,104350.0,1.40497101]
[1748760875570,0.35484269,104360.0,104350.0,1.37803191]
[1748760875692,0.35484269,104360.0,104350.0,1.40497101]
[1748760875899,0.35484269,104360.0,104350.0,1.39599131]
[1748760876140,0.35484269,104360.0,104350.0,1.40497133]
[1748760876602,0.35484269,104360.0,104350.0,1.39599131]
[1748760876891,0.35484269,104360.0,104350.0,1.40497219]
[1748760877095,0.35484269,104360.0,104350.0,1.40497336]
[1748760877424,0.35484269,104360.0,104350.0,1.39599327]
[1748760877559,0.35484269,104360.0,104350.0,1.40497395]
[1748760878117,0.35484269,104360.0,104350.0,1.40497461]
[1748760878467,0.34526057,104360.0,104350.0,1.38580881]
[1748760878667,0.34526057,104360.0,104350.0,1.38580915]
[1748760878915,0.34526057,104360.0,104350.0,1.38580918]
[1748760879105,0.34526057,104360.0,104350.0,1.36784713]
[1748760879339,0.36066057,104360.0,104350.0,1.38581166]
[1748760879487,0.37686057,104360.0,104350.0,1.37682981]
[1748760879671,0.37686057,104360.0,104350.0,1.39539461]
[1748760881218,0.37686057,104360.0,104350.0,1.38641277]
[1748760881600,0.37686057,104360.0,104350.0,1.39539462]
[1748760882279,0.37686057,104360.0,104350.0,1.04530587]
[1748760882480,0.37686057,104360.0,104350.0,1.36844906]
[1748760882664,0.37686057,104360.0,104350.0,1.39539461]
[1748760883555,0.37686057,104360.0,104350.0,1.37743091]
[1748760883780,0.37686057,104360.0,104350.0,1.39539462]
[1748760884189,0.37686057,104360.0,104350.0,1.40497747]
[1748760884882,0.37686057,104360.0,104350.0,1.39599562]
[1748760885243,0.37686057,104360.0,104350.0,1.38701376]
[1748760885451,0.37686057,104360.0,104350.0,1.40497746]
[1748760885646,0.34526057,104360.0,104350.0,1.40497747]
[1748760887985,0.34526057,104360.0,104350.0,1.39599563]
[1748760888195,0.34526057,104360.0,104350.0,1.38701377]
[1748760888393,0.34526057,104360.0,104350.0,1.37803191]
[1748760888594,0.34526057,104360.0,104350.0,1.40497749]
[1748760889341,0.34526057,104360.0,104350.0,1.39599563]
[1748760889545,0.34526057,104360.0,104350.0,1.40497749]
[1748760890673,0.34526057,104360.0,104350.0,1.39539464]
[1748760891077,0.34526057,104360.0,104350.0,1.37743092]
[1748760891314,0.34526057,104360.0,104350.0,1.39539464]
[1748760891542,0.34526057,104360.0,104350.0,1.36844906]
[1748760891751,0.34526057,104360.0,104350.0,1.39539462]
[1748760891950,0.34526057,104360.0,104350.0,1.37743091]
[1748760892180,0.34526057,104360.0,104350.0,1.39539461]
[1748760892658,0.34526057,104360.0,104350.0,1.38641276]
[1748760892858,0.34526057,104360.0,104350.0,1.39539459]
[1748760893074,0.34526057,104360.0,104350.0,1.39539457]
[1748760893210,0.34526057,104360.0,104350.0,1.3774309]
[1748760893421,0.34526057,104360.0,104350.0,1.39539458]
[1748760893668,0.34526057,104360.0,104350.0,1.3774309]
[1748760893871,0.34526057,104360.0,104350.0,1.39539459]
[1748760894614,0.34526057,104360.0,104350.0,1.39539456]
[1748760894799,0.34526057,104360.0,104350.0,1.39539454]
[1748760895111,0.34526057,104360.0,104350.0,1.39539452]
[1748760895291,0.34526057,104360.0,104350.0,1.39539461]
[1748760895723,0.34526057,104360.0,104350.0,1.39539462]
[1748760896061,0.34526057,104360.0,104350.0,1.37622859]
[1748760896287,0.34526057,104360.0,104350.0,1.38581163]
[1748760896879,0.38790435,104360.0,104350.0,0.86142273]
[1748760897086,0.44111487,104360.0,104350.0,0.86142273]
[1748760897795,0.44111487,104360.0,104350.0,0.86141597]
[1748760898181,0.44111487,104360.0,104350.0,0.86141259]
[1748760898635,0.44111487,104360.0,104350.0,0.84344666]
[1748760898906,0.44111487,104360.0,104350.0,0.84344675]
[1748760899105,0.47945582,104360.0,104350.0,0.84344473]
[1748760899653,0.47945582,104360.0,104350.0,0.83446826]
[1748760899851,0.47945582,104360.0,104350.0,0.84344324]
[1748760900505,0.47945582,104360.0,104350.0,0.84344347]
[1748760901136,0.47945582,104360.0,104350.0,0.82548649]